bitfinex/quotes_SOLUSD_20251202
["timestamp","ask_amount","ask_price","bid_price","bid_amount"]
[1764706814694,8.08,139.23,139.21,0.7]
[1764706814892,8.08,139.23,139.2,25.14367815]
[1764706814893,8.08,139.23,139.2,7.18390804]
[1764706815102,8.08,139.23,139.2,7.88390804]
[1764706815406,8.08,139.23,139.2,7.18390804]
[1764706815607,8.08,139.23,139.21,0.7]
[1764706816306,8.08,139.23,139.21,7.88322086]
[1764706816892,8.08,139.23,139.22,0.7]
[1764706817596,0.66,139.27,139.22,0.7]
[1764706817795,15.41347903,139.26,139.22,0.7]
[1764706818099,8.08,139.26,139.22,0.7]
[1764706818316,15.41347903,139.26,139.22,0.7]
[1764706818706,8.08,139.26,139.23,7.18236012]
[1764706818905,15.41347903,139.26,139.23,7.18236012]
[1764706819106,8.08,139.26,139.23,7.88236012]
[1764706819518,15.41347903,139.26,139.23,7.88236012]
[1764706820827,76.81347903,139.26,139.23,7.88236012]
[1764706821027,8.08,139.26,139.24,0.7]
[1764706821547,0.2,139.3,139.24,8.03347903]
[1764706821744,15.41347903,139.29,139.25,0.7]
[1764706822543,8.08,139.29,139.25,0.7]
[1764706822721,15.41347903,139.29,139.25,0.7]
[1764706823114,7.33347903,139.27,139.23,0.7]
[1764706823326,7.33347903,139.26,139.22,7.18273471]
[1764706823622,7.33347903,139.26,139.22,0.7]
[1764706823824,7.33347903,139.26,139.23,0.7]
[1764706824028,0.66,139.28,139.23,0.7]
[1764706824329,7.33347903,139.28,139.23,8.03347903]
[1764706824723,7.33347903,139.28,139.24,0.7]
[1764706825107,15.41347903,139.29,139.25,7.18132854]
[1764706825427,15.41347903,139.29,139.26,0.7]
[1764706825624,76.81347903,139.29,139.26,0.7]
[1764706825839,83.99279165,139.29,139.26,0.7]
[1764706826214,69.48,139.29,139.26,0.7]
[1764706826413,76.81347903,139.29,139.26,0.7]
[1764706826819,76.81347903,139.29,139.2,0.7]
[1764706826820,0.66,139.28,139.2,0.7]
[1764706827009,7.33347903,139.24,139.21,0.7]
[1764706827330,15.41347903,139.24,139.21,7.88323956]
[1764706827926,7.33347903,139.23,139.19,7.88399489]
[1764706828127,7.33347903,139.23,139.2,0.7]
[1764706829114,7.33347903,139.23,139.2,7.88359983]
[1764706832410,3.12317509,139.23,139.2,7.88359983]
[1764706832612,64.52317509,139.23,139.2,7.88359983]
[1764706833439,61.4,139.23,139.2,7.88359983]
[1764706833648,61.4,139.23,139.21,0.7]
[1764706833819,61.4,139.23,139.2,7.86359983]
[1764706834726,0.72,139.28,139.22,3.12317509]
[1764706835043,3.12317509,139.25,139.19,64.19078051]
[1764706835228,3.12317509,139.24,139.21,0.68]
[1764706835419,8.06,139.24,139.19,7.86442416]
[1764706835620,3.12317509,139.23,139.2,0.68]
[1764706836760,3.12317509,139.22,139.14,8.78]
[1764706837047,3.12317509,139.21,139.16,16.308864]
[1764706837249,3.12317509,139.19,139.16,16.308864]
[1764706837431,3.12317509,139.2,139.17,0.68]
[1764706837836,3.12317509,139.21,139.17,0.68]
[1764706838027,3.12317509,139.22,139.17,0.68]
[1764706838433,3.84317509,139.22,139.17,0.68]
[1764706838751,3.84317509,139.22,139.18,7.18494036]
[1764706839135,3.84317509,139.22,139.18,7.86494036]
[1764706839339,3.12317509,139.21,139.18,7.86494036]
[1764706839545,3.12317509,139.21,139.18,7.18494036]
[1764706839741,3.84317509,139.21,139.18,7.18494036]
[1764706839945,3.12317509,139.2,139.17,7.18538799]
[1764706840143,3.12317509,139.19,139.16,23.49467005]
[1764706840340,3.12317509,139.19,139.16,24.17467005]
[1764706840657,3.12317509,139.19,139.08,35.95051104]
[1764706840658,3.12317509,139.17,139.13,0.68]
[1764706840956,3.12317509,139.17,139.1,7.18294331]
[1764706840957,3.12317509,139.15,139.1,3.12317509]
[1764706841123,3.12317509,139.15,139.12,16.308864]
[1764706841551,3.12317509,139.15,139.12,0.68]
[1764706843055,3.12317509,139.13,139.08,0.71]
[1764706843223,8.06,139.12,139.09,0.71]
[1764706843423,11.18317509,139.12,139.09,0.71]
[1764706843844,8.06,139.12,139.09,0.71]
[1764706845231,8.06,139.12,139.1,7.1890726]
[1764706845754,8.06,139.12,139.1,7.8990726]
[1764706849837,5.59648828,139.11,139.07,0.71]
[1764706850030,4.88648828,139.1,139.07,0.71]
[1764706851571,4.88648828,139.11,139.07,0.71]
[1764706852129,15.95811669,139.12,139.08,7.19010641]
[1764706852130,12.94648828,139.12,139.08,7.19010641]
[1764706852442,12.94648828,139.12,139.08,25.16537244]
[1764706852630,12.94648828,139.12,139.09,0.71]
[1764706854193,12.94648828,139.12,139.09,7.89942073]
[1764706854458,8.06,139.12,139.09,7.89942073]
[1764706854660,8.06,139.12,139.1,0.71]
[1764706855429,12.94648828,139.12,139.09,7.89942073]
[1764706856250,8.06,139.12,139.1,0.71]
[1764706857557,0.71,139.18,139.11,4.88648828]
[1764706857857,12.94648828,139.17,139.11,4.88648828]
[1764706858070,12.94648828,139.17,139.13,7.18752246]
[1764706858469,4.88648828,139.16,139.13,7.89752246]
[1764706858854,4.88648828,139.15,139.09,16.308864]
[1764706859071,0.71,139.15,139.1,0.71]
[1764706859255,4.88648828,139.13,139.1,0.71]
[1764706859459,4.88648828,139.12,139.08,24.20873946]
[1764706859666,4.88648828,139.12,139.09,0.71]
[1764706859866,4.88648828,139.12,139.05,11.80965152]
[1764706859867,4.88648828,139.1,139.05,3.74965152]
[1764706860061,4.88648828,139.07,139.04,7.90213433]
[1764706860661,4.88648828,139.08,139.04,7.19213433]
[1764706860878,5.59648828,139.08,139.04,7.90213433]
[1764706861062,8.06,139.09,139.06,4.88648828]
[1764706861269,13.65648828,139.12,139.07,4.88648828]
[1764706861471,13.65648828,139.12,139.08,0.71]
[1764706862166,8.06,139.12,139.06,16.308864]
[1764706862361,13.65648828,139.12,139.08,0.71]
[1764706862780,8.06,139.12,139.08,0.71]
[1764706863985,8.06,139.12,139.09,7.18958947]
[1764706864364,8.06,139.12,139.09,7.89958947]
[1764706864565,8.06,139.12,139.09,25.87356315]
[1764706864761,4.88648828,139.15,139.1,5.59648828]
[1764706864968,69.46,139.14,139.11,0.71]
[1764706865280,8.06,139.14,139.12,4.88648828]
[1764706865484,8.06,139.14,139.13,4.88648828]
[1764706865683,13.65648828,139.17,139.12,4.88648828]
[1764706865879,8.06,139.17,139.13,4.88648828]
[1764706866084,8.06,139.17,139.13,0.71]
[1764706866376,8.06,139.17,139.14,0.71]
[1764706867862,8.06,139.17,139.15,19.65687829]
[1764706868066,20.3634854,139.22,139.16,12.4703889]
[1764706868268,21.2403889,139.22,139.17,12.4703889]
[1764706868477,21.2403889,139.22,139.17,13.1803889]
[1764706868661,12.4703889,139.21,139.18,0.71]
[1764706868859,21.2403889,139.22,139.18,0.71]
[1764706869264,8.06,139.22,139.18,13.1803889]
[1764706869468,8.06,139.22,139.19,12.4703889]
[1764706869667,8.06,139.22,139.19,13.1803889]
[1764706869885,8.06,139.22,139.2,20.36397806]
[1764706870384,8.06,139.22,139.2,19.65397806]
[1764706870590,8.06,139.22,139.21,0.71]
[1764706870766,0.71,139.25,139.21,0.71]
[1764706870963,8.06,139.26,139.22,12.4703889]
[1764706871168,8.77,139.26,139.22,12.4703889]
[1764706871394,8.77,139.26,139.22,13.1803889]
[1764706871573,12.4703889,139.27,139.22,12.4703889]
[1764706871777,7.17926627,139.29,139.24,7.18184429]
[1764706871778,12.4703889,139.29,139.24,7.18184429]
[1764706871981,20.5303889,139.29,139.24,7.18184429]
[1764706872293,21.2503889,139.29,139.25,0.67]
[1764706872674,21.2503889,139.29,139.25,13.1403889]
[1764706872675,8.06,139.29,139.25,13.1403889]
[1764706873001,0.2,139.3,139.26,12.4703889]
[1764706873169,0.2,139.3,139.26,13.1403889]
[1764706873371,0.2,139.3,139.27,0.67]
[1764706873873,0.2,139.3,139.28,7.17978173]
[1764706874366,0.2,139.3,139.27,7.8501568]
[1764706874792,12.6703889,139.3,139.27,7.8501568]
[1764706875300,12.6703889,139.3,139.25,7.85124614]
[1764706875513,12.6703889,139.3,139.26,0.67]
[1764706876000,12.6703889,139.3,139.26,7.85038618]
[1764706876172,0.2,139.3,139.26,7.85038618]
[1764706876376,12.6703889,139.3,139.26,7.18038618]
[1764706876573,12.6703889,139.3,139.27,0.67]
[1764706876794,12.6703889,139.3,139.26,7.18038618]
[1764706877005,12.6703889,139.3,139.26,7.85038618]
[1764706877203,12.6703889,139.3,139.21,0.67]
[1764706877204,12.4703889,139.27,139.21,0.67]
[1764706877417,12.4703889,139.25,139.21,0.67]
[1764706877701,12.4703889,139.24,139.21,0.67]
[1764706878267,12.4703889,139.24,139.21,7.85317815]
[1764706879294,15.94117558,139.26,139.12,57.5179225]
[1764706879295,12.4703889,139.22,139.17,17.96312169]
[1764706879499,12.4703889,139.2,139.17,17.96312169]
[1764706879798,20.5103889,139.2,139.16,7.85597298]
[1764706879990,20.5103889,139.2,139.16,24.16483698]
[1764706880400,20.5103889,139.2,139.16,23.49483698]
[1764706880604,8.04,139.2,139.17,13.1403889]
[1764706881126,8.04,139.2,139.18,0.67]
[1764706881285,8.04,139.2,139.19,7.18442416]
[1764706881674,8.04,139.2,139.18,0.67]
[1764706881675,8.04,139.2,139.18,7.85479854]
[1764706881874,8.04,139.2,139.16,7.18583744]
[1764706881875,12.4703889,139.19,139.16,7.18583744]
[1764706882074,8.76,139.2,139.16,7.85583744]
[1764706882075,20.5103889,139.2,139.16,7.85583744]
[1764706882890,8.04,139.2,139.16,7.85583744]
[1764706883094,20.5103889,139.2,139.16,7.85583744]
[1764706883314,8.04,139.2,139.17,0.67]
[1764706885398,8.04,139.2,139.17,7.85499333]
[1764706885900,8.04,139.2,139.18,0.67]
[1764706887713,8.04,139.2,139.19,7.18442416]
[1764706888230,8.04,139.2,139.18,7.85473664]
[1764706890288,8.04,139.23,139.19,13.1403889]
[1764706890813,0.72,139.27,139.22,12.4703889]
[1764706890987,8.04,139.26,139.21,12.4703889]
[1764706891186,8.04,139.26,139.2,28.7792529]
[1764706891187,12.4703889,139.25,139.2,28.7792529]
[1764706891389,13.1903889,139.25,139.2,0.67]
[1764706891691,13.1903889,139.24,139.2,0.67]
[1764706891888,20.5103889,139.26,139.21,53.92112488]
[1764706892105,8.04,139.26,139.21,53.92112488]
[1764706892288,8.04,139.26,139.22,13.1403889]
[1764706892487,8.04,139.26,139.23,0.67]
[1764706892893,12.4703889,139.29,139.24,16.308864]
[1764706893117,8.04,139.28,139.24,28.7792529]
[1764706893414,21.2303889,139.28,139.24,0.67]
[1764706893786,8.04,139.28,139.24,13.1403889]
[1764706893992,8.04,139.28,139.25,7.18132854]
[1764706894224,8.04,139.28,139.25,7.90132854]
[1764706894514,8.04,139.28,139.25,25.8546499]
[1764706894718,8.04,139.28,139.26,0.72]
[1764706895724,21.2103889,139.28,139.24,7.90168168]
[1764706895922,8.04,139.28,139.24,7.90168168]
[1764706896111,21.2103889,139.28,139.24,7.90168168]
[1764706896296,8.04,139.27,139.24,7.90168168]
[1764706897305,20.5103889,139.27,139.24,7.18168168]
[1764706897508,21.2103889,139.27,139.24,7.18168168]
[1764706897736,21.2103889,139.27,139.22,28.7792529]
[1764706897737,12.4703889,139.25,139.22,16.308864]
[1764706897924,12.4703889,139.23,139.17,0.72]
[1764706898104,8.04,139.24,139.17,0.72]
[1764706898105,12.4703889,139.21,139.17,0.72]
[1764706898305,8.04,139.2,139.17,13.1903889]
[1764706898524,8.04,139.2,139.18,0.72]
[1764706899332,20.5103889,139.22,139.18,0.72]
[1764706899536,8.04,139.22,139.19,7.18442416]
[1764706900030,8.04,139.22,139.2,0.72]
[1764706900537,8.04,139.24,139.2,13.1903889]
[1764706900720,8.04,139.24,139.21,13.1903889]
[1764706900916,8.04,139.24,139.19,41.45434858]
[1764706900917,20.5103889,139.24,139.19,24.21328816]
[1764706901118,13.1703889,139.23,139.19,24.21328816]
[1764706901309,12.4703889,139.23,139.19,23.49328816]
[1764706901514,8.04,139.23,139.21,7.18339199]
[1764706903433,8.04,139.23,139.22,0.68]
[1764706904535,20.5103889,139.23,139.21,7.18339199]
[1764706905031,20.5103889,139.23,139.2,7.18390804]
[1764706905237,20.5103889,139.23,139.2,7.86390804]
[1764706905423,20.5103889,139.23,139.2,7.18390804]
[1764706905624,20.5103889,139.23,139.2,7.86390804]
[1764706905841,12.4703889,139.22,139.2,7.18390804]
[1764706906041,12.4703889,139.22,139.19,16.308864]
[1764706906042,0.69,139.22,139.19,23.49310165]
[1764706906215,12.4703889,139.21,139.19,23.49310165]
[1764706906416,8.01204552,139.22,139.19,23.49310165]
[1764706908244,0.69,139.22,139.19,23.49310165]
[1764706908444,15.36204552,139.23,139.19,23.49310165]
[1764706908644,68.72204552,139.22,139.19,23.49310165]
[1764706908945,69.41204552,139.22,139.19,23.49310165]
[1764706909143,61.4,139.22,139.19,24.17310165]
[1764706909330,61.4,139.22,139.19,41.45416207]
[1764706909530,61.4,139.22,139.2,0.68]
[1764706910119,61.4,139.22,139.21,7.18339199]
[1764706911427,61.4,139.22,139.2,7.86371697]
[1764706911735,61.4,139.22,139.2,7.18371697]
[1764706912321,3.12320957,139.21,139.17,34.2717608]
[1764706912548,65.21320957,139.22,139.18,25.82729127]
[1764706913128,65.21320957,139.22,139.15,7.18648939]
[1764706913129,33.95011788,139.22,139.15,7.18648939]
[1764706913326,8.80994492,139.15,139.09,11.73404066]
[1764706913645,3.12320957,139.13,139.09,0.68]
[1764706913850,3.12320957,139.12,139.08,10.94218678]
[1764706914066,11.22320957,139.11,139.08,7.18968285]
[1764706914329,3.12320957,139.1,139.07,7.19042599]
[1764706914454,7.33465055,139.1,139.07,7.19042599]
[1764706916873,8.1,139.11,139.08,0.68]
[1764706917869,7.33465055,139.1,139.07,7.19042599]
[1764706918447,15.43465055,139.11,139.07,7.19042599]
[1764706919075,7.33465055,139.1,139.07,7.19042599]
[1764706919580,15.43465055,139.11,139.07,7.19042599]
[1764706920274,15.43465055,139.11,139.07,7.87042599]
[1764706920463,8.1,139.11,139.08,0.68]
[1764706921076,7.33465055,139.12,139.08,0.68]
[1764706921280,8.08,139.11,139.08,0.68]
[1764706921659,15.41465055,139.11,139.08,0.68]
[1764706921859,61.4,139.1,139.08,0.68]
[1764706922481,7.33465055,139.09,139.04,0.68]
[1764706922688,15.41465055,139.08,139.04,0.68]
[1764706923193,15.41465055,139.08,139.03,28.92790557]
[1764706923373,15.41465055,139.08,139.02,16.408864]
[1764706923374,7.33465055,139.06,139.02,7.2929841]
[1764706923683,7.33465055,139.06,139.03,0.68]
[1764706923871,7.33465055,139.06,139.02,7.2929841]
[1764706924070,7.33465055,139.06,139.02,7.9729841]
[1764706924458,7.33465055,139.06,139.03,0.68]
[1764706924958,7.33465055,139.06,139.02,7.2929841]
[1764706925149,7.33465055,139.06,139.02,7.9729841]
[1764706925763,7.33465055,139.06,139.02,25.95600812]
[1764706925961,7.33465055,139.06,139.03,0.68]
[1764706926186,7.33465055,139.06,139.02,25.27600812]
[1764706926187,7.33465055,139.06,139.02,0.1]
[1764706926359,7.33465055,139.07,139.03,0.68]
[1764706927393,15.41465055,139.06,139.03,0.68]
[1764706927560,8.08,139.06,139.03,0.68]
[1764706928265,8.08,139.06,139.04,7.19217491]
[1764706928670,7.33465055,139.05,139.02,0.1]
[1764706928871,7.33465055,139.04,139.02,0.1]
[1764706929073,7.33465055,139.05,139.02,7.29316729]
[1764706929872,8.08,139.06,139.02,7.29316729]
[1764706930197,17.97336939,139.1,139.04,7.33465055]
[1764706930198,7.33465055,139.1,139.04,7.33465055]
[1764706930405,8.08,139.08,139.06,7.19114051]
[1764706930764,8.08,139.11,139.07,8.01465055]
[1764706931298,8.08,139.11,139.08,0.68]
[1764706931677,7.33465055,139.09,139.05,0.68]
[1764706931866,7.33465055,139.09,139.05,7.87157925]
[1764706932064,8.08,139.11,139.05,7.87157925]
[1764706932302,7.33465055,139.09,139.05,7.88157925]
[1764706932466,14.52426021,139.09,139.05,7.88157925]
[1764706932668,7.33465055,139.09,139.06,0.69]
[1764706932981,7.33465055,139.1,139.06,0.69]
[1764706934815,14.52414051,139.1,139.06,0.69]
[1764706935214,15.26865039,139.11,139.06,15.2157237]
[1764706935378,7.33465055,139.09,139.06,0.69]
[1764706935576,7.33465055,139.09,139.03,30.83591686]
[1764706935816,7.33465055,139.09,139.05,0.69]
[1764706937474,14.52469666,139.09,139.05,0.69]
[1764706939487,7.33465055,139.07,139.02,8.12465055]
[1764706939682,8.08,139.09,139.05,7.33465055]
[1764706939900,8.08,139.09,139.06,7.33465055]
[1764706940218,8.08,139.09,139.07,0.69]
[1764706941510,8.08,139.09,139.07,7.8803777]
[1764706942283,8.08,139.09,139.08,0.69]
[1764706945315,8.08,139.09,139.08,7.88010641]
[1764706945816,15.26822867,139.12,139.08,7.88010641]
[1764706945984,15.26822867,139.12,139.09,0.69]
[1764706946878,8.08,139.12,139.09,7.87943879]
[1764706947082,8.08,139.12,139.09,15.21408934]
[1764706947299,8.08,139.12,139.1,0.69]
[1764706947988,76.72665595,139.32,139.1,8.02465055]
[1764706947989,8.06,139.14,139.1,8.02465055]
[1764706948180,8.06,139.14,139.12,7.1880391]
[1764706948611,3.12688492,139.18,139.13,3.81688492]
[1764706948914,8.06,139.17,139.13,3.81688492]
[1764706949090,8.06,139.17,139.14,0.69]
[1764706949801,8.06,139.17,139.14,3.81688492]
[1764706950202,3.12688492,139.15,139.11,16.308864]
[1764706950402,7.33133993,139.13,139.1,0.69]
[1764706950600,15.39133993,139.13,139.1,0.69]
[1764706951114,15.39133993,139.13,139.08,30.83031034]
[1764706951313,15.39133993,139.13,139.08,48.80557637]
[1764706951519,15.39133993,139.13,139.09,0.69]
[1764706951991,22.57893509,139.13,139.09,0.69]
[1764706953114,15.39133993,139.13,139.09,7.87919688]
[1764706953317,8.06,139.13,139.09,15.21053681]
[1764706953620,8.06,139.13,139.1,0.69]
[1764706954015,8.80994492,139.1,139.03,0.67]
[1764706954326,7.33133993,139.06,139.03,0.67]
[1764706954499,15.41133993,139.05,139.02,3.85415871]
[1764706954823,15.41133993,139.05,139.02,0.1]
[1764706954998,15.41133993,139.05,139.02,0.77]
[1764706955200,22.60300936,139.05,139.02,0.77]
[1764706956512,15.41133993,139.05,139.02,7.96316956]
[1764706956711,15.41133993,139.05,139.02,0.77]
[1764706956712,22.60307338,139.05,139.02,0.77]
[1764706956904,22.60307338,139.05,139.02,0.1]
[1764706957100,22.60307338,139.05,139.03,0.67]
[1764706957322,15.27173345,139.05,139.03,0.67]
[1764706957526,8.08,139.05,139.03,0.67]
[1764706958911,14.52270168,139.06,139.03,0.67]
[1764706959115,8.06,139.05,139.03,0.67]
[1764706960028,8.06,139.05,139.03,15.1939349]
[1764706960434,8.06,139.05,139.04,0.67]
[1764706960632,8.06,139.05,139.04,8.00133993]
[1764706961633,8.06,139.05,139.04,7.86217491]
[1764706961835,8.06,139.08,139.04,33.17395212]
[1764706962137,8.06,139.08,139.05,0.7]
[1764706963135,8.06,139.08,139.05,8.03133993]
[1764706963543,8.06,139.08,139.06,0.7]
[1764706964741,8.06,139.08,139.06,7.89111083]
[1764706964920,8.06,139.08,139.07,0.7]
[1764706965124,8.06,139.09,139.07,0.7]
[1764706965323,8.06,139.09,139.05,7.33133993]
[1764706965636,8.06,139.09,139.07,0.7]
[1764706966437,7.18873155,139.11,139.07,0.7]
[1764706966438,8.06,139.1,139.07,0.7]
[1764706966743,7.18824483,139.12,139.07,20.37315769]
[1764706966939,8.06,139.11,139.08,13.18299113]
[1764706967420,8.06,139.11,139.09,13.18299113]
[1764706967614,8.06,139.11,139.02,36.0641079]
[1764706967615,12.48299113,139.1,139.05,0.7]
[1764706968041,20.54299113,139.11,139.05,13.18299113]
[1764706968433,8.80994492,139.1,139.05,0.7]
[1764706968631,7.19010641,139.08,139.04,12.48299113]
[1764706968832,15.25010641,139.08,139.04,20.375111]
[1764706969014,15.25010641,139.08,139.05,0.7]
[1764706970544,27.73309754,139.08,139.03,7.89255008]
[1764706971041,27.73309754,139.08,139.04,0.7]
[1764706971341,15.25010641,139.08,139.04,13.18299113]
[1764706971721,15.25010641,139.08,139.05,0.7]
[1764706972434,8.06,139.08,139.05,0.7]
[1764706974248,8.06,139.08,139.05,7.8913712]
[1764706975838,8.06,139.08,139.06,0.7]
[1764706976426,8.06,139.08,139.06,7.89110821]
[1764706977245,8.06,139.08,139.06,0.7]
[1764706977738,8.06,139.08,139.06,7.89113716]
[1764706977924,8.06,139.08,139.06,0.7]
[1764706979033,8.06,139.08,139.06,7.89110694]
[1764706979424,8.06,139.08,139.07,0.7]
[1764706980325,8.04,139.11,139.07,7.89062342]
[1764706980528,8.04,139.11,139.08,0.7]
[1764706981345,20.52299113,139.11,139.08,0.7]
[1764706981738,8.04,139.11,139.08,13.18299113]
[1764706981939,8.04,139.11,139.1,7.1890726]
[1764706982151,12.48299113,139.14,139.1,7.1890726]
[1764706982345,12.48299113,139.16,139.11,0.7]
[1764706982549,20.52299113,139.16,139.11,13.18299113]
[1764706982749,8.04,139.16,139.11,13.18299113]
[1764706982950,8.04,139.16,139.12,0.7]
[1764706983752,8.04,139.16,139.12,13.18299113]
[1764706984143,20.52299113,139.18,139.13,25.85632861]
[1764706984452,20.52299113,139.18,139.13,42.16519261]
[1764706984655,20.52299113,139.18,139.14,0.7]
[1764706985233,20.52299113,139.18,139.15,7.18648939]
[1764706985627,20.52299113,139.18,139.15,7.88648939]
[1764706987848,8.04,139.18,139.15,7.88648939]
[1764706989338,8.04,139.18,139.16,0.7]
[1764706991467,8.04,139.18,139.17,7.18545663]
[1764706992444,4.88088455,139.22,139.17,30.71998276]
[1764706992644,8.04,139.21,139.18,0.69]
[1764706993262,8.04,139.21,139.19,7.18442416]
[1764706993465,8.04,139.21,139.19,12.06530871]
[1764706993662,8.04,139.23,139.2,0.69]
[1764706994170,8.04,139.23,139.2,5.57088455]
[1764706994644,8.04,139.23,139.21,0.69]
[1764706995153,8.04,139.23,139.22,7.18287602]
[1764706995551,8.04,139.23,139.21,0.69]
[1764706995743,8.04,139.23,139.21,7.87332828]
[1764706996943,8.04,139.23,139.22,0.69]
[1764706998651,4.88088455,139.25,139.22,7.87275224]
[1764706998852,12.92088455,139.25,139.22,7.87275224]
[1764707000774,20.10224545,139.25,139.22,7.87275224]
[1764707001172,15.2213609,139.25,139.22,7.87275224]
[1764707001481,8.04,139.25,139.22,7.87275224]
[1764707002274,8.04,139.25,139.23,0.69]
[1764707002772,20.10236434,139.25,139.23,0.69]
[1764707003075,15.22147979,139.25,139.23,0.69]
[1764707003244,8.04,139.25,139.23,0.69]
[1764707004183,14.37889476,139.3,139.24,4.88088455]
[1764707004470,12.92088455,139.29,139.25,4.88088455]
[1764707004778,20.10045577,139.29,139.25,12.06209931]
[1764707005067,20.10045577,139.29,139.26,0.69]
[1764707005869,4.88088455,139.27,139.22,0.69]
[1764707006076,12.92088455,139.26,139.22,0.69]
[1764707006671,8.04,139.26,139.22,5.57088455]
[1764707007080,12.06054216,139.29,139.24,4.88088455]
[1764707007384,8.04,139.27,139.23,12.75324467]
[1764707007554,12.92088455,139.27,139.23,7.87236012]
[1764707007947,12.92088455,139.27,139.24,0.69]
[1764707008372,8.04,139.27,139.24,0.69]
[1764707010789,20.10164645,139.27,139.24,0.69]
[1764707011298,15.2207619,139.27,139.24,0.69]
[1764707011496,20.10164645,139.27,139.24,0.69]
[1764707012388,8.04,139.27,139.24,0.69]
[1764707013080,15.22037981,139.27,139.24,0.69]
[1764707016999,20.10126436,139.27,139.2,16.308864]
[1764707017181,4.88088455,139.26,139.21,12.72380409]
[1764707017595,4.88088455,139.26,139.22,0.66]
[1764707019443,20.10126436,139.27,139.23,7.18236012]
[1764707019885,20.10126436,139.27,139.23,7.84236012]
[1764707020204,8.04,139.26,139.23,0.66]
[1764707020701,12.92088455,139.26,139.23,0.66]
[1764707021506,8.04,139.26,139.23,7.84225495]
[1764707021680,8.04,139.26,139.23,7.84228358]
[1764707021880,8.04,139.26,139.24,0.65]
[1764707022202,15.2208465,139.26,139.22,12.0635322]
[1764707022402,20.10173105,139.26,139.23,0.65]
[1764707022880,61.4,139.25,139.23,0.65]
[1764707023504,61.4,139.25,139.23,7.83228946]
[1764707024006,61.4,139.25,139.24,0.65]
[1764707025508,61.4,139.25,139.24,7.83184429]
[1764707025816,61.4,139.25,139.24,0.65]
[1764707027082,61.4,139.25,139.24,7.83184429]
[1764707028508,61.4,139.25,139.22,25.13957933]
[1764707028710,61.4,139.25,139.23,0.65]
[1764707028895,61.4,139.24,139.23,0.65]
[1764707030511,61.4,139.24,139.23,7.83236012]
[1764707030811,61.4,139.23,139.19,0.65]
[1764707030984,3.12185014,139.21,139.19,0.65]
[1764707032288,8.02,139.2,139.19,0.65]
[1764707032793,8.02,139.2,139.19,7.83442416]
[1764707033521,8.02,139.21,139.19,25.79548458]
[1764707033691,8.02,139.21,139.2,0.65]
[1764707034683,11.14185014,139.21,139.2,0.65]
[1764707035583,61.4,139.2,139.19,0.65]
[1764707035786,64.52185014,139.2,139.19,0.65]
[1764707036017,61.4,139.2,139.19,0.65]
[1764707036520,8.02,139.21,139.19,0.65]
[1764707036818,8.02,139.21,139.2,7.18390804]
[1764707037182,8.02,139.21,139.2,7.83390804]
[1764707037419,61.4,139.24,139.2,7.83390804]
[1764707037632,8.02,139.23,139.21,0.65]
[1764707037917,11.14185014,139.23,139.2,7.83390804]
[1764707038134,3.12185014,139.22,139.2,7.83390804]
[1764707038320,8.02,139.21,139.2,7.83390804]
[1764707041536,8.02,139.23,139.2,28.91552829]
[1764707041706,8.02,139.23,139.21,0.65]
[1764707042804,64.52185014,139.22,139.19,0.65]
[1764707043019,11.14185014,139.21,139.19,0.65]
[1764707045141,8.02,139.21,139.19,7.83396766]
[1764707045632,8.02,139.21,139.2,0.65]
[1764707046039,64.52185014,139.25,139.2,0.65]
[1764707046331,8.02,139.24,139.2,0.65]
[1764707047034,8.02,139.24,139.21,7.18339199]
[1764707047408,8.02,139.24,139.22,0.65]
[1764707048253,3.12185014,139.23,139.16,7.98436722]